Cogmind - Beta 12 @@@ ROGUE MODE // 2023.04.02 @ 03:35:38 Player: lyrabold Result: Destroyed by G-34 Mercenary with Small Laser Performance ------------- Evolutions (1) 500 Regions Visited (5) 1000 Robots Destroyed (73) 365 Value Destroyed (1458) 1458 Prototype IDs (33) 660 Alien Tech Used (0) 0 Bonus (251) 251 TOTAL SCORE: 4234 Bonus ------- High Alert Combat Kills 35 Follower Combat Kills 60 Aligned with FarCom 300 Friendly Fire -144 Cogmind --------- Core Integrity 0/400 Matter 217/300 Energy 139/250 System Corruption 3% Temperature Cool (12) Movement Treading (160) Location -9/Exiles Parts ------- > --- POWER (1) -------- Ion Engine > --- PROPULSION (3) --- Light Treads Light Treads Light Treads > --- UTILITY (3) ------ Large Storage Unit Experimental Core Analyzer Cloak of Protection > --- WEAPON (2) ------- Minigun Mini Grenade Launcher > --- INVENTORY (15) --- Ion Engine Advanced Myomer Leg Wheel Superbattery (399) High-capacity Matter Pod (200) Experimental Targeting Computer Advanced Transmission Jammer Long-range Tractor Beam Heavy Assault Rifle Improved Assault Rifle Improved Assault Rifle Improved Assault Rifle Minigun 8R-AWN's Boregun Rocket Launcher Peak State ------------ > --- POWER ------------ Ion Engine > --- PROPULSION ------- Light Treads Light Treads Light Treads > --- UTILITY ---------- Large Storage Unit Experimental Core Analyzer Cloak of Protection > --- WEAPON ----------- Minigun 8R-AWN's Boregun > --- INVENTORY -------- Ion Engine Advanced Myomer Leg Wheel Superbattery High-capacity Matter Pod Experimental Targeting Computer Advanced Transmission Jammer Long-range Tractor Beam Heavy Assault Rifle Improved Assault Rifle Improved Assault Rifle Improved Assault Rifle Minigun Rocket Launcher Mini Grenade Launcher [Rating: 41] Favorites ----------- Power Improved Ion Engine Engine Improved Ion Engine Power Core Light Nuclear Core Propulsion Light Treads Treads Light Treads Leg Aluminum Leg Wheel Wheel Utility Huge Storage Unit Device Heat Sink Storage Huge Storage Unit Processor Improved Targeting Computer Hackware EX Chip 2 Protection Light Armor Plating Weapon Improved Assault Rifle Energy Gun Particle Gun Energy Cannon Beam Cannon Ballistic Gun Improved Assault Rifle Ballistic Cannon Light Cannon Launcher Rocket Launcher Build | -11 -10 -10 -9 -9 -9 ------- Run | Jun Mat Min Mat Min Exi Slots Evolved 2 | . . . 2 . . Power . | . . . . . . Propulsion 1 | . . . 1 . . Utility 1 | . . . 1 . . Weapon . | . . . . . . Parts Attached 100 | 9 11 18 29 3 30 Power 8 | 1 1 3 2 . 1 Engine 6 | 1 1 2 1 . 1 Core 2 | . . 1 1 . . Reactor . | . . . . . . Propulsion 27 | 4 2 2 6 2 11 Treads 13 | 2 2 . 1 1 7 Leg 4 | 2 . . . . 2 Wheel 10 | . . 2 5 1 2 Hover . | . . . . . . Flight . | . . . . . . Utility 36 | 2 7 6 8 1 12 Device 23 | 1 4 5 7 1 5 Storage 6 | 1 3 . 1 . 1 Processor 3 | . . . . . 3 Hackware 2 | . . . . . 2 Protection 2 | . . 1 . . 1 Artifact . | . . . . . . Weapon 29 | 2 1 7 13 . 6 Energy Gun 5 | . 1 1 3 . . Energy Cannon 1 | . . 1 . . . Ballistic Gun 16 | 2 . 3 6 . 5 Ballistic Cannon 3 | . . 2 1 . . Launcher 4 | . . . 3 . 1 Special Weapon . | . . . . . . Impact Weapon . | . . . . . . Slashing Weapon . | . . . . . . Piercing Weapon . | . . . . . . Special Melee Weapon . | . . . . . . Unidentified Prototypes 6 | . . . 2 . 4 Parts Lost 30 | . 2 8 11 . 9 Power 5 | . . 2 2 . 1 Propulsion 11 | . . 2 5 . 4 Utility 6 | . 1 1 2 . 2 Weapon 8 | . 1 3 2 . 2 Highest Loss Streak 5 | . 2 4 5 . 5 To Critical Strikes 8 | . . 1 . . 7 Average Slot Usage (%) 97 | . 99 94 87 100 97 Engine 10 | . 14 8 7 11 10 Treads 21 | . 26 11 . 17 28 Leg 1 | . 1 . . . 1 Wheel 7 | . . 15 24 15 2 Device 11 | . 13 13 19 22 4 Storage 12 | . 14 14 11 11 11 Processor 3 | . . . . . 9 Protection 2 | . . . . . 7 Energy Gun 4 | . 11 9 10 . . Ballistic Gun 18 | . 16 11 7 22 22 Naked Turns . | . . . . . . Heaviest Build 102 | 12 92 56 102 95 96 Greatest Support 60 | 40 40 40 42 26 60 Greatest Overweight (x) 9 | . 2 4 5 9 9 Average Overweight (x) 2 | . . 1 2 6 1 Largest Inventory Capacity 25 | 8 25 20 25 25 25 Average Capacity 20 | 7 19 20 22 25 21 Most Carried 25 | 5 20 20 25 25 25 Average Carried 18 | 3 14 18 21 25 18 Final Capacity 25 | 8 20 20 25 25 15 Final Carried 25 | 5 20 20 25 25 15 Class Distribution -------------------- 52% | Scavenger-Mutant 47% | Mutant Dominant Class ---------------- Mutant | -10/Materials Mutant | -10/Mines Mutant | -9/Materials Scavenger-Mutant | -9/Mines Scavenger-Mutant | -9/Exiles Resources | -11 -10 -10 -9 -9 -9 ----------- Run | Jun Mat Min Mat Min Exi Matter Collected 2835 | 324 495 208 680 84 1044 Remotely 317 | . . . . . 317 Salvage Created 2522 | 93 714 208 746 203 558 Parts 198 | 7 44 13 52 10 72 Haulers Intercepted 4 | . 2 . 2 . . Recyclers Shooed 2 | . 1 . . 1 . Parts Field Recycled 16 | . . . 16 . . Retrieved Matter 61 | . . . 61 . . Parts Self-Destructed . | . . . . . . Prevented . | . . . . . . Kills | -11 -10 -10 -9 -9 -9 ------- Run | Jun Mat Min Mat Min Exi Combat Hostiles Destroyed 57 | . 16 12 22 3 4 Guns 46 | . 16 8 15 3 4 Cannons 6 | . . 4 2 . . AOE 5 | . . . 5 . . Classes Destroyed 14 | 2 5 2 2 1 2 Builder 5 | . 1 . 3 1 . Tunneler 3 | 2 1 . . . . Hauler 4 | . 2 . 2 . . Recycler 3 | 1 . 1 . 1 . Operator 1 | . . . 1 . . Turret 1 | . . . . . 1 Watcher 2 | . 2 . . . . Swarmer 18 | . 3 6 9 . . Grunt 25 | . 13 . 9 2 1 Brawler 1 | . . . . 1 . Sentry 4 | . . . 4 . . Demolisher 1 | . . 1 . . . Zionite 2 | . . . . . 2 Assembled 8 | . . 5 . . 3 Best Kill Streak 8 | 3 7 3 8 4 2 Combat Bots Only 6 | . 6 3 6 3 2 Max Kills in Single Turn 3 | 1 1 1 3 1 1 Gunslinging 1 | . . . 1 . . Exploded 2 | . . . 2 . . Melee . | . . . . . . Uniques/NPCs Destroyed 4 | . . . . . 4 8R-AWN (-9/Exiles) EX-DEC (-9/Exiles) EX-BIN (-9/Exiles) EX-HEX (-9/Exiles) Combat | -11 -10 -10 -9 -9 -9 -------- Run | Jun Mat Min Mat Min Exi Damage Taken 4040 | . 654 999 726 97 1564 Core 645 | . 132 107 194 21 191 Absorbed by Shields . | . . . . . . Regen/Repaired (Parts) 54 | . . . 54 . . Core Remaining (%) 52 | 100 . 4 . . . Volleys Fired 309 | 11 87 44 50 9 108 Largest 2 | 2 2 2 2 2 2 Hottest 126 | 40 85 125 126 46 55 Shots Fired 575 | 22 171 88 91 18 185 Gun 525 | 22 171 59 70 18 185 Cannon 43 | . . 29 14 . . Launcher 7 | . . . 7 . . Special . | . . . . . . Kinetic 453 | 22 121 63 44 18 185 Thermal 115 | . 50 25 40 . . Explosive 7 | . . . 7 . . Electromagnetic . | . . . . . . Robot Hit Streak 14 | 4 11 8 14 7 9 Robot Miss Streak 6 | 1 4 6 5 1 6 Penetration Max 2 | . . . . . 2 Secondary Targets 4 | . . 2 1 1 . Max Gunslinging Chain 1 | . . 1 1 1 . Shots Hit Robots 354 | 13 106 45 54 12 124 Core Hits 151 | 3 45 20 39 8 36 Critical Kills 3 | . . . . . 3 Critical Parts Destroyed 10 | . . . . . 10 Critical Strikes 15 | . 2 . . . 13 Burn 2 | . 2 . . . . Destroy 13 | . . . . . 13 Melee Attacks . | . . . . . . Impact . | . . . . . . Slashing . | . . . . . . Piercing . | . . . . . . Sneak Attacks . | . . . . . . Combat Hostiles . | . . . . . . Follow-up Attacks . | . . . . . . Damage Inflicted 5754 | 150 1242 645 1304 185 2228 Guns 4788 | 150 1155 416 654 185 2228 Cannons 375 | . . 229 146 . . Explosions 504 | . . . 504 . . Melee . | . . . . . . Ramming 87 | . 87 . . . . Kinetic 3892 | 150 645 329 355 185 2228 Thermal 1271 | . 510 316 445 . . Explosive 504 | . . . 504 . . Electromagnetic . | . . . . . . Impact . | . . . . . . Slashing . | . . . . . . Piercing . | . . . . . . Highest Corruption 4 | . . . . . 4 Average Corruption 3 | . . . . . 3 Corruption Purged 4 | . . . . . 4 Corruption Blocked . | . . . . . . Effects 1 | . . . . . 1 Weapon Failures 1 | . . . . . 1 Overload Shots . | . . . . . . Overflow Damage 31 | . . 16 15 . . Projectiles 16 | . . 16 . . . Explosions 15 | . . . 15 . . Melee . | . . . . . . Knockbacks 2 | . . 1 1 . . Impact . | . . . . . . Kinetic 2 | . . 1 1 . . Secondary . | . . . . . . Self-Inflicted Damage 94 | . . . 94 . . Shots 3 | . . . 3 . . Rammed 12 | . 12 . . . . Targets Rammed 12 | . 12 . . . . Kicked . | . . . . . . Crushed . | . . . . . . Highest Temperature 319 | . 200 319 108 . 32 Average Temperature 51 | . 36 142 22 . 13 Received Heat Transfer 564 | . 312 . 186 54 12 Effects 1 | . . 1 . . . Energy Bleed 1 | . . 1 . . . Siege Activations . | . . . . . . Robots Corrupted . | . . . . . . Combat Hostiles . | . . . . . . Parts Fried . | . . . . . . Impact Corruptions . | . . . . . . Robots Melted . | . . . . . . Combat Hostiles . | . . . . . . Parts Melted 4 | . 3 . 1 . . Heat Transferred 3034 | . 1369 703 962 . . Parts Sabotaged . | . . . . . . Parts Stolen . | . . . . . . Parts Stripped . | . . . . . . Power Chain Reactions . | . . . . . . Missiles Intercepted . | . . . . . . Alert | -11 -10 -10 -9 -9 -9 ------- Run | Jun Mat Min Mat Min Exi Peak Influence 514 | 15 329 140 514 258 . Initial 200 | . 9 13 7 200 . Average 130 | 8 133 19 306 112 . Maximum Alert Level 2 | . 1 . 2 1 . Low Security (%) 72 | 100 81 100 21 68 . Level 1 23 | . 18 . 53 31 . Level 2 3 | . . . 24 . . Level 3 . | . . . . . . Level 4 . | . . . . . . Level 5 . | . . . . . . High Security . | . . . . . . Max Security . | . . . . . . Squads Dispatched 9 | . 4 1 4 . . Investigation 7 | . 3 1 3 . . Extermination . | . . . . . . Reinforcement 2 | . 1 . 1 . . Assault . | . . . . . . Garrison . | . . . . . . Intercept . | . . . . . . Searches Triggered . | . . . . . . Construction Impeded . | . . . . . . Haulers Reinforced . | . . . . . . Active Scanning Responses . | . . . . . . Cargo Convoy Interrupts . | . . . . . . Stealth | -11 -10 -10 -9 -9 -9 --------- Run | Jun Mat Min Mat Min Exi Distress Signals . | . . . . . . Communications Jammed . | . . . . . . Distress Signals . | . . . . . . Times Spotted 116 | . 30 13 25 3 45 Peak Tracking Total 9 | . 7 4 5 3 9 Tactical Retreats 17 | . 1 . 1 . 15 Traps | -11 -10 -10 -9 -9 -9 ------- Run | Jun Mat Min Mat Min Exi Traps Triggered . | . . . . . . Indirectly . | . . . . . . Trap Hack Attempts . | . . . . . . Triggered . | . . . . . . Disarmed . | . . . . . . Reprogrammed . | . . . . . . Reused . | . . . . . . Traps Extracted . | . . . . . . Installed 1 | . . . . . 1 Triggered . | . . . . . . Most Traps Carried 2 | . . 2 2 2 2 Exploded 3 | . . . . . 3 Machines | -11 -10 -10 -9 -9 -9 ---------- Run | Jun Mat Min Mat Min Exi Machines Disabled 14 | . . . 1 . 13 Max in Single Turn 2 | . . . 1 . 2 Machines Repaired . | . . . . . . Machines Sabotaged . | . . . . . . Overloaded Fab Kills . | . . . . . . Hacking | -11 -10 -10 -9 -9 -9 --------- Run | Jun Mat Min Mat Min Exi Machines Accessed 18 | . 7 1 7 . 3 Terminals 10 | . 6 . 4 . . Fabricators . | . . . . . . Repair Stations 1 | . . . 1 . . Recycling Units 2 | . 1 . 1 . . Scanalyzers 1 | . . . 1 . . Garrison Access . | . . . . . . Total Hacks 53 | . 28 1 21 . 3 Successful 31 | . 13 1 14 . 3 Failed 21 | . 14 . 7 . . Catastrophic 5 | . 2 . 3 . . Database Lockouts 1 | . 1 . . . . Manual 25 | . 14 . 10 . 1 Terminals 36 | . 24 . 12 . . Fabricators . | . . . . . . Repair Stations 2 | . . . 2 . . Recycling Units 6 | . 4 . 2 . . Scanalyzers 5 | . . . 5 . . Garrison Access . | . . . . . . Terminal Hacks 21 | . 11 1 6 . 3 Record 2 | . . . . . 2 Part Schematic 2 | . 1 . 1 . . Prototype ID Bank 4 | . 2 . 2 . . Open Door 1 | . . 1 . . . Emergency Access Points 1 | . 1 . . . . Terminal Index 1 | . 1 . . . . Recycling Unit Index 2 | . 1 . 1 . . Locate Traps 2 | . 2 . . . . Zone Layout 5 | . 3 . 2 . . EX-Prototype ID Bank 1 | . . . . . 1 Fabricator Hacks . | . . . . . . Repair Station Hacks 2 | . . . 2 . . Scan Component 1 | . . . 1 . . Repair 1 | . . . 1 . . Recycling Unit Hacks 1 | . 1 . . . . Retrieve Components 1 | . 1 . . . . Scanalyzer 4 | . . . 4 . . Insert Component 1 | . . . 1 . . Analyze 3 | . . . 3 . . Garrison Access Hacks . | . . . . . . Unauthorized Hacks 3 | . 1 . 2 . . Terminals . | . . . . . . Fabricators . | . . . . . . Repair Stations . | . . . . . . Recycling Units 2 | . 1 . 1 . . Tunnel 2 | . 1 . 1 . . Scanalyzers 1 | . . . 1 . . Extract 1 | . . . 1 . . Garrison Access . | . . . . . . Data Cores Recovered . | . . . . . . Used . | . . . . . . Hacking Detections 10 | . 5 . 5 . . Full Trace Events 4 | . 3 . 1 . . Feedback Events . | . . . . . . Feedback Blocked . | . . . . . . Robot Schematics Acquired . | . . . . . . Robots Built . | . . . . . . Authchips . | . . . . . . Time . | . . . . . . Total Robot Build Rating . | . . . . . . Part Schematics Acquired 8 | . 1 . 7 . . Parts Built . | . . . . . . Authchips . | . . . . . . Time . | . . . . . . Total Part Build Rating . | . . . . . . Parts Repaired 1 | . . . 1 . . Time 13 | . . . 13 . . Parts Recycled . | . . . . . . Recycled Matter . | . . . . . . Retrieved Matter . | . . . . . . Retrieved Components 6 | . 6 . . . . Parts Scanalyzed 1 | . . . 1 . . Part Schematics Acquired 1 | . . . 1 . . Parts Damaged . | . . . . . . Bothacking | -11 -10 -10 -9 -9 -9 ------------ Run | Jun Mat Min Mat Min Exi Used RIF Installer . | . . . . . . Robots Hacked . | . . . . . . Non-combat . | . . . . . . Combat . | . . . . . . Robot Hacks Applied . | . . . . . . Relay Couplers Released . | . . . . . . Fabnet Peak Effective % . | . . . . . . Robots Rewired . | . . . . . . Allies Hacked . | . . . . . . Hacks Repelled . | . . . . . . Allies | -11 -10 -10 -9 -9 -9 -------- Run | Jun Mat Min Mat Min Exi Total Allies 4 | . . . . 4 . Largest Group 3 | . . . . 3 3 Highest-Rated Group 40 | . . . . 40 40 Highest-Rated Ally 31 | . . . . 31 16 Total Orders 7 | . . . . . 7 STAY 7 | . . . . . 7 Ally Attacks 27 | . . . . 8 19 Total Damage 250 | . . . . 124 126 Kills 4 | . . . . 2 2 Allies Corrupted . | . . . . . . Allies Melted . | . . . . . . Intel | -11 -10 -10 -9 -9 -9 ------- Run | Jun Mat Min Mat Min Exi Robot Analysis Total . | . . . . . . Derelict Logs Recovered 3 | . . 1 . 2 . Drone Launches . | . . . . . . Drone Recoveries . | . . . . . . Exploration | -11 -10 -10 -9 -9 -9 ------------- Run | Jun Mat Min Mat Min Exi Turns Passed 8157 | 177 1896 822 745 1253 3264 Spaces Moved 3722 | 101 739 443 400 684 1355 Core 6 | 6 . . . . . Treads 1879 | 25 689 124 . . 1041 Legs 120 | 70 50 . . . . Wheels 1717 | . . 319 400 684 314 Hover . | . . . . . . Flight . | . . . . . . Fastest Speed 50 | 50 120 110 95 135 110 Average Speed 182 | 125 211 147 123 176 202 Slowest Speed 320 | 160 320 240 155 215 240 Overloaded Moves . | . . . . . . Propulsion Burnouts . | . . . . . . Robots Hopped . | . . . . . . Cave-ins Triggered . | . . . . . . Exploration Rate (%) 68 | 5 97 92 32 98 89 Regions Visited 5 Branch Regions 3 Pre-discovered Areas 4 | . 1 . 1 1 1 Known Exits Taken . | . . . . . . Unknown Exits Taken 5 | 1 1 1 1 1 . Scrap Searched 2 | . . 1 . 1 . Spaces Dug 29 | . . . 29 . . Terrain Destroyed 61 | . . . 50 . 11 Melee . | . . . . . . Projectile 10 | . . . . . 10 AOE 50 | . . . 50 . . Terrain Rammed . | . . . . . . Walls Destroyed . | . . . . . . Machines Disabled . | . . . . . . Actions | -11 -10 -10 -9 -9 -9 --------- Run | Jun Mat Min Mat Min Exi Total 4561 | 127 902 528 567 713 1724 Wait 251 | . 24 7 46 15 159 Move 3717 | 100 738 442 399 683 1355 Hop . | . . . . . . Pick Up 94 | 7 20 11 28 . 28 Fast Attach 29 | 5 2 3 6 1 12 Attach 33 | 2 1 8 10 . 12 Detach 8 | . 1 . . . 7 Swap 38 | 2 8 7 13 2 6 Drop 69 | . 9 6 15 3 36 Fire 309 | 11 87 44 50 9 108 Melee . | . . . . . . Ram . | . . . . . . Kick . | . . . . . . Crush 12 | . 12 . . . . Escape Stasis . | . . . . . . Rewire . | . . . . . . Trap 1 | . . . . . 1 Miscellaneous . | . . . . . . Route ------- -11/Junkyard -10/Materials (discovered 5 exits: *Mat x3 / *Min x2) -10/Mines -9/Materials -9/Mines (discovered 2 exits: [*Mat] / *Exi) -9/Exiles (discovered 1 exit: [*Min]) History --------- Turn | Location | Event 4 | -11/Junkyard | Discovered new exit (range 16) 178 | -11/Junkyard | Entered Materials 270 | -10/Materials | Discovered new exit (range 15) 270 | -10/Materials | Central database locked down 307 | -10/Materials | Build established: Mutant 587 | -10/Materials | Discovered new exit (range 8) 713 | -10/Materials | Discovered new exit (range 16) 936 | -10/Materials | Discovered new exit (range 5) 1147 | -10/Materials | Core integrity fell below 50% 1658 | -10/Materials | Discovered new exit (range 14) 2074 | -10/Materials | Entered Mines 2090 | -10/Mines | Met a Derelict bent on vengeance 2200 | -10/Mines | Assembled infested the area 2205 | -10/Mines | Assisted by a Guerilla fighting off Assembled 2217 | -10/Mines | Met a Derelict shopkeep closing up shop 2414 | -10/Mines | Core integrity fell below 20% 2448 | -10/Mines | Lost 4 parts (1p2n1u) 2504 | -10/Mines | Received a Rocket Launcher from a helpful Derelict 2683 | -10/Mines | Learned Materials terminal intel 2727 | -10/Mines | Found a hidden stash of uninstalled traps 2843 | -10/Mines | Discovered new exit (range 10) 2896 | -10/Mines | Entered Materials 2896 | -9/Materials | Evolved 2 slots: Propulsion x1, Utility x1 2897 | -9/Materials | Loaded intel: 12 terminal locations 3035 | -9/Materials | Lost 4 parts (1p2n1w) 3201 | -9/Materials | Lost 5 parts (1p2n1u1w) 3314 | -9/Materials | Repaired Lgt. Treads 3597 | -9/Materials | Discovered new exit (range 9) 3641 | -9/Materials | Entered Mines 3644 | -9/Mines | Received a Mining Laser from a helpful Derelict 3659 | -9/Mines | Learned Materials garrison access intel 3708 | -9/Mines | Deemed a non-threat by the Exiles lab entrance 3708 | -9/Mines | Discovered new exit (range 5) 4106 | -9/Mines | Core integrity fell below 50% 4123 | -9/Mines | Build established: Scavenger-Mutant 4196 | -9/Mines | Discovered new exit (range 11) 4555 | -9/Mines | Assisted by bots powering up and referring to "LRC-V3" 4894 | -9/Mines | Entered Exiles 4894 | -9/Exiles | Accompanied by 3 allies 4962 | -9/Exiles | Met 8R-AWN 4998 | -9/Exiles | Met EX-HEX 5094 | -9/Exiles | Met EX-DEC 5106 | -9/Exiles | Learned location of Zion (-6) 5621 | -9/Exiles | Met EX-BIN 5655 | -9/Exiles | Aligned with FarCom system 5657 | -9/Exiles | Given EX-Vault access code 5865 | -9/Exiles | Visited The Gauntlet 6643 | -9/Exiles | Discovered new exit (range 15) 6949 | -9/Exiles | Attacked by the Exiles 7146 | -9/Exiles | Lost 5 parts (1p2n2u) 7175 | -9/Exiles | Destroyed 8R-AWN 7180 | -9/Exiles | Found Prototype Processor 7198 | -9/Exiles | Found Prototype Ballistic Gun 7198 | -9/Exiles | Identified 8R-AWN's Boregun 7201 | -9/Exiles | Lost 4 parts (2n2w) 7466 | -9/Exiles | Core integrity fell below 20% 7472 | -9/Exiles | Destroyed EX-DEC 7524 | -9/Exiles | Destroyed EX-BIN 7535 | -9/Exiles | Found Prototype Device 7535 | -9/Exiles | Identified System Purifier 7559 | -9/Exiles | Destroyed EX-HEX 7729 | -9/Exiles | Found Prototype Processor 7729 | -9/Exiles | Identified Exp. Core Analyzer 7928 | -9/Exiles | Opened EX-Vault 7993 | -9/Exiles | Exiles lab attacked by MAIN.C 8052 | -9/Exiles | Found Superbattery 8058 | -9/Exiles | Found Cloak of Protection 8158 | -9/Exiles | Destroyed by G-34 Mercenary with Small Laser Last Messages --------------- >>Record "BIN-038/Flying Fortress v7" BIN: What if a powerful robot could just quickly move in and hop over unimportant front lines of a confrontation to strike at the heart of their enemy? This question must be answered... ** HEX: Where exactly are the testing grounds for this thing? Who would want to attract this much attention? ** DEC: Warlord. 08028_ EXILES: Lab perimeter alert, evacuate immediately. 08050_ Dropped Imp. EM Shotgun. 08052_ Acquired Superbattery. 08058_ Acquired Cloak of Protection. 08146_ HV Slug penetrates Machine. 08146_ HV Slug penetrates Wall. 08149_ HV Slug penetrates Machine. 08151_ Machine disabled. 08151_ HV Slug penetrates Machine. 08154_ HV Slug penetrates P-60 Hacker. 08154_ HV Slug penetrates Wall. 08154_ Machine disabled. 08155_ Slug penetrates Machine. 08156_ Penetrated by Slug. Map ----- +----------------------------------------------------+ | ???????????????????????????????#""""""## ##### | | ???????????????????????????????#"""" ## #???? | | ???????????????????????????????#""X" #???? | | ???????????????????????????????#" #???? | | ???????????????????????????????#" ## #???? | | ???????????????????????????????#""""""## #?### | | ???????????????????????????????##"###### #?#"" | | ??????????????????????????????? "?????# #?#"" | | ??????????????????????????????"""??????# #?#"" | | ??????????????????????????????""??????## ###"" | | ??????#######?????????????????????????#" | | ??????# "#?????????????????????????#" | | ??????# "#?????????????????????????#" | | ??????# "#?????????????????????????#" | | #????## ""#????????????######???????#" | | #####" ""#???????????? """#???????#" | | ## ""#???????????"" """#???????## | | #" ###??????????#"" #????????# | | #????????????#"" #????????#" "X | | ##???????????#"" "#????????#" "" | | # "##??????????? ""?????????#" """" | | "#####????????" "?????????##" ##### | | "" ##???????# #????????##"" #???? | | ![ ### % * """###???### ###?######"" #???? | | ! #?#" #####X# #"###""""""" ##??? | | !!"#?#" @ """""" " "" ##?? | | """ ###"# " "" " ### | | ## # #?#### " | | ?# # #????### p | | ?# ## ??????### p g | | ?# #? ???????## gh | | ?# #?###???????## h | | ?# #????????????##" | | ?# #?????????????#"" """""" | | ?# #????????????##" ######""" | | ?# #????????????#"" "##????#####""" | | ?? ????????????##""" """##?????????##""" | | ?? ????????????#""" """#"#??????????#""" | | ?? ????????????#""" ""##!##???????##"" | | ?? ????????????#"" ####"####?####"""" | | ?? ????????????#" "*! "###""" | | ???????????????#"" *! !"""" | | ???????????????##"" !! | | ????????????????#"" " = | | ????????????????## = | | ?????????????????#" " "" | | ?????????????????#" "" ""## ##""" " | | ?????????????????#"" ""#### ######" | | ?????????????????#" """"##??# #????## | | ?????????????????#""" """#??## ####??? | +----------------------------------------------------+ Best States ------------- Heat Dissipation 52 Energy Generation 14 Energy Capacity 265 Matter Stores 300 Matter Capacity 300 Sight Range 16 Terrain Scan Density 10 Cloak Strength 5 Corruption Containment 12 Armor Coverage 150 Evasion (%) 55 Targeting Accuracy 6 Core Analysis 8 Recoil Reduction 3 Item Schematics ----------------- Huge Storage Unit | -10/Materials | Hacked Lrn. Tractor Beam | -9/Materials | Scanalyzed Sensor Array | -9/Materials | Extracted Hvy. EM Pulse Gun | -9/Materials | Extracted Imp. Aluminum Leg | -9/Materials | Extracted Signal Interpreter | -9/Materials | Extracted Datajack | -9/Materials | Extracted Arm. Wheel | -9/Materials | Hacked Robot Schematics ------------------ None Fabricated ------------ Nothing Alien Tech Used ----------------- None Achievements -------------- None Challenges ------------ None Game ------ Seed TerrainAblativeSuite Manual? 0 Play Time 01:00:42 Cumulative 251.1 hours Start 2023.04.02 @ 00:27:58 End 2023.04.02 @ 03:35:38 Sessions 3 Manual Loads 0 Difficulty Rogue Special Mode None Game No. 145 Rogue 145 Adventurer 0 Explorer 0 Win Type - Total 12 Types 7/0/2/2/0/0/1/0/0 Lore% 78 Gallery% 83 Achievement% 76 Wizard Run 0 Options --------- ASCII 0 Keyboard 1 Movement Arrows Keybinds 0 Fullscreen 2 Font 18/X11 Map View 76x50 Tactical HUD 1 Map Filters NONE Filters NONE Steam 1 RUN: 4b005aae-7ea9-48aa-8a67-e8651eec9007